Cogmind - Beta 16.1 @@@ ROGUE MODE // 2026.04.13 @ 21:26:19 Player: unq Result: Destroyed by Tracker with Linked Autogun Performance ------------- Evolutions (5) 2500 Regions Visited (21) 4200 Robots Destroyed (288) 1440 Value Destroyed (10164) 10164 Prototype IDs (248) 4960 Alien Tech Used (0) 0 Bonus (6140) 6140 TOTAL SCORE: 29404 Bonus ------- High Alert Combat Kills 1270 Follower Combat Kills 70 Entered Garrisons 400 Aligned with FarCom 300 Met Data Miner 300 Used Data Conduit 3000 Acquired ECA 300 Pursued by Intercept 500 Cogmind --------- Core Integrity 0/1000 Matter 38/300 Energy 100/100 System Corruption 4% Temperature Cool (0) Movement Core (50) Location -5/Factory Parts ------- > --- POWER (2) -------- (None) > --- PROPULSION (5) --- (None) > --- UTILITY (6) ------ Improved Signal Interpreter > --- WEAPON (4) ------- (None) > --- INVENTORY (5) ---- Antigrav System VTOL Module Improved Arc Projector Antimatter Cannon Improved Plasma Cutter Peak State ------------ > --- POWER ------------ Nuclear Core Light Nuclear Core > --- PROPULSION ------- Medium Treads Medium Treads Medium Treads Medium Treads Medium Treads > --- UTILITY ---------- Advanced Heat Sink Improved Cooling System High-capacity Storage Unit Advanced Signal Interpreter > --- WEAPON ----------- Storm Laser > --- INVENTORY -------- Light Ion Engine Medium Treads Wheel Compact Battery High-capacity Matter Pod Improved Hardlight Generator Gatling Laser Makeshift Laser Autogun Flak Gun Heavy Machine Gun Guided Missile Launcher Powered Hammer Fire Trap Fire Trap [Rating: 70] Favorites ----------- Power Cooled Ion Engine Engine Cooled Ion Engine Power Core Light Nuclear Core Propulsion Light Treads Treads Light Treads Leg Flexi-carbon Leg Wheel Armored Wheel Hover Unit Improved Gravmag System Flight Unit VTOL Module Utility High-capacity Storage Unit Device Seismic Detector Storage High-capacity Storage Unit Processor Advanced Signal Interpreter Protection Reactive Plating Weapon Gauss Rifle Energy Gun Gatling Laser Energy Cannon Heavy Ion Cannon Ballistic Gun Gauss Rifle Ballistic Cannon Light Cannon Launcher Mini Grenade Launcher Impact Weapon Great Maul Special Melee Weapon Datajack Build | -11 -10 -10 -9 -9 -9 -8 -8 -8 -8 -8 -7 -7 -7 -7 -6 -6 -6 -6 -6 -5 -5 ------- Run | Yrd Mat Min Mat Min Exi Min Mat Gar Mat Gar Fac Low Low Zio Pro Fac Low Low Dat Pro Fac Slots Evolved 10 | . . . 2 . . . 2 . . . 2 . . . . 2 . . . . 2 Power 1 | . . . . . . . . . . . . . . . . 1 . . . . . Propulsion 3 | . . . 1 . . . 1 . . . . . . . . 1 . . . . . Utility 4 | . . . . . . . 1 . . . 1 . . . . . . . . . 2 Weapon 2 | . . . 1 . . . . . . . 1 . . . . . . . . . . Parts Attached 179 | 7 16 1 24 2 1 2 8 7 17 8 19 2 14 9 1 22 1 1 1 . 16 Power 19 | 1 2 . 3 . . . . 1 1 . 2 1 1 . . 4 . . . . 3 Engine 9 | 1 2 . 3 . . . . 1 . . . . . . . 2 . . . . . Core 10 | . . . . . . . . . 1 . 2 1 1 . . 2 . . . . 3 Reactor . | . . . . . . . . . . . . . . . . . . . . . . Propulsion 51 | 2 4 . 5 1 . . 1 . 11 5 3 . 3 . . 7 . . . . 9 Treads 37 | 2 4 . 5 1 . . 1 . 9 5 1 . 3 . . 6 . . . . . Leg 3 | . . . . . . . . . . . 1 . . . . . . . . . 2 Wheel 4 | . . . . . . . . . 2 . 1 . . . . 1 . . . . . Hover 6 | . . . . . . . . . . . . . . . . . . . . . 6 Flight 1 | . . . . . . . . . . . . . . . . . . . . . 1 Utility 53 | 2 5 . 6 . . 1 4 4 4 1 7 . 4 4 . 6 1 . 1 . 3 Device 33 | 1 . . 3 . . 1 3 3 3 . 5 . 2 4 . 4 1 . 1 . 2 Storage 4 | 1 3 . . . . . . . . . . . . . . . . . . . . Processor 3 | . . . . . . . . . . . . . . . . 2 . . . . 1 Hackware . | . . . . . . . . . . . . . . . . . . . . . . Protection 13 | . 2 . 3 . . . 1 1 1 1 2 . 2 . . . . . . . . Artifact . | . . . . . . . . . . . . . . . . . . . . . . Weapon 56 | 2 5 1 10 1 1 1 3 2 1 2 7 1 6 5 1 5 . 1 . . 1 Energy Gun 8 | . . . 2 . . . . . . . 2 . 2 1 . . . 1 . . . Energy Cannon 6 | . . . 2 . 1 . . . . . . 1 . . 1 1 . . . . . Ballistic Gun 26 | 2 2 . 2 1 . 1 2 1 1 1 5 . 3 1 . 4 . . . . . Ballistic Cannon 6 | . 2 1 2 . . . . . . . . . . . . . . . . . 1 Launcher 6 | . . . . . . . 1 1 . 1 . . . 3 . . . . . . . Special Weapon . | . . . . . . . . . . . . . . . . . . . . . . Impact Weapon 3 | . 1 . 1 . . . . . . . . . 1 . . . . . . . . Slashing Weapon . | . . . . . . . . . . . . . . . . . . . . . . Piercing Weapon . | . . . . . . . . . . . . . . . . . . . . . . Special Melee Weapon 1 | . . . 1 . . . . . . . . . . . . . . . . . . Unidentified Prototypes 12 | . . . 3 . . . 2 . . . 1 . . 5 . 1 . . . . . Parts Lost 71 | . 1 . . . . . 1 5 6 2 12 . 8 . 2 10 . . 11 2 11 Power 12 | . 1 . . . . . . 1 . . 2 . 1 . . 2 . . 3 . 2 Propulsion 25 | . . . . . . . 1 1 2 . 2 . 4 . 1 4 . . 5 . 5 Utility 18 | . . . . . . . . 2 1 1 4 . 1 . . 2 . . 2 2 3 Weapon 16 | . . . . . . . . 1 3 1 4 . 2 . 1 2 . . 1 . 1 Highest Loss Streak 11 | . 1 . . . . . 1 2 4 1 4 . 3 . 2 3 . . 11 1 10 To Critical Strikes 3 | . . . . . . . 1 . . . . . . . . 1 . . . . 1 Average Backups 17 | 1 13 20 19 20 19 20 19 19 19 19 19 19 18 18 16 15 16 14 12 1 2 Power . | . . 1 1 1 1 1 1 . 1 1 . 1 1 1 1 1 1 1 . . . Propulsion 2 | . 2 3 2 3 3 3 3 3 3 5 5 3 1 . . . 2 2 1 . 1 Utility 7 | . 4 6 6 6 7 8 7 7 7 6 7 7 9 11 10 10 9 7 4 . . Weapon 6 | 1 6 8 9 8 7 7 7 6 7 5 5 5 4 4 4 4 4 3 5 1 1 Tool/Special . | . . . . . . . . . . . . . . . . . . . . . . Unused Backups 49 | . 6 2 4 3 1 . 7 1 4 1 2 . 1 7 . 3 . . 4 . 3 Power 1 | . . . 1 . . . . . . . . . . . . . . . . . . Propulsion 6 | . 1 . . . . . 3 . . . . . . . . . . . 1 . 1 Utility 23 | . 3 . 1 2 1 . 2 . 3 . 2 . . 5 . 2 . . 2 . . Weapon 17 | . 2 2 2 1 . . 2 1 1 1 . . . 2 . 1 . . 1 . 1 Tool/Special 2 | . . . . . . . . . . . . . 1 . . . . . . . 1 Average Slot Usage (%) 92 | . 99 100 99 100 83 100 99 99 99 99 97 83 86 83 96 85 100 99 66 19 25 Engine 6 | . 13 14 11 11 11 11 9 8 8 . . . . . . 4 . . . . . Core 3 | . . . . . . . . . . 9 6 7 6 7 7 5 13 13 11 . 2 Treads 27 | . 28 28 32 33 33 33 35 36 31 36 27 . 11 30 28 21 33 33 29 . . Wheel 1 | . . . . . . . . . 4 . 1 15 7 . . . . . . . . Device 12 | . 10 11 10 10 11 11 8 12 12 14 14 15 14 14 20 9 13 13 11 19 5 Storage 8 | . 14 14 11 11 11 11 9 9 9 9 7 7 7 7 7 6 6 6 5 . . Protection 3 | . 3 2 . . . . 9 5 5 3 6 7 6 7 2 4 . . . . . Energy Gun 1 | . . . . . . . . . . . . 7 9 7 10 . . 5 . . . Energy Cannon 3 | . . . 8 . 2 11 1 7 9 9 3 6 . . . 6 6 . . . . Ballistic Gun 10 | . 16 . 5 17 3 17 18 16 13 12 20 . 12 4 15 11 13 14 . . . Ballistic Cannon 5 | . 9 28 15 11 3 4 4 1 2 . . . . . . . . . . . . Impact Weapon 2 | . 1 . 2 4 . . 1 . 2 4 4 7 3 . . 4 6 4 . . . Peak Build Rating 70 | 7 11 12 27 30 31 37 41 41 40 35 45 42 47 62 52 66 67 65 70 12 41 Average Rating 34 | 5 8 9 23 27 23 30 37 39 34 32 36 40 40 50 45 51 65 59 42 6 18 On Entrance 32 | . 7 10 9 26 29 31 31 37 40 35 34 35 41 42 52 46 66 64 58 11 4 Avg Prop Armor Cover (%) 10 | . . . . . . . . . 12 . . 7 9 5 . 10 . . . . 15 Naked Turns 37 | . . . . . . . . . . . . . . . . . . . 16 . 21 Heaviest Build 95 | 11 56 56 64 66 67 67 76 80 74 70 78 76 79 95 80 94 74 77 75 5 9 Greatest Support 140 | 40 40 40 60 68 68 68 90 90 90 82 82 40 96 96 96 140 140 140 140 3 43 Greatest Overweight (x) 7 | . 1 1 1 . . . . . 6 . 6 1 2 1 1 7 . . 1 1 2 Average Overweight (x) . | . . 1 . . . . . . 1 . . 1 1 . . . . . . . . Largest Inventory Capacity 20 | 8 20 20 20 20 20 20 20 20 20 20 20 20 20 20 20 20 20 20 20 5 5 Average Capacity 19 | 7 14 20 20 20 20 20 20 20 20 20 20 20 20 20 20 20 20 20 18 5 5 Most Carried 20 | 3 20 20 20 20 20 20 20 20 20 20 20 20 20 20 20 20 20 20 20 5 5 Average Carried 18 | 1 13 19 19 19 19 20 19 19 19 19 19 19 18 19 20 19 19 19 18 3 3 Final Capacity 20 | 8 20 20 20 20 20 20 20 20 20 20 20 20 20 20 20 20 20 20 5 5 5 Final Carried 20 | 3 20 20 20 20 20 20 20 20 20 20 18 20 16 20 20 20 20 20 5 3 5 Class Distribution -------------------- 27% | Mutant 19% | Scavenger-Tank 17% | Tank 14% | Gunner 7% | Scavenger-Mutant 3% | Scavenger-Skirmisher 3% | Assassin Dominant Class ---------------- Mutant | -10/Materials Mutant | -10/Mines Gunner | -9/Materials Gunner | -9/Mines Mutant | -9/Exiles Gunner | -8/Mines Tank | -8/Materials Tank | -8/Garrison Scavenger-Tank | -8/Materials Scavenger-Mutant | -8/Garrison Scavenger-Tank | -7/Factory Tank | -7/Lower Caves Tank | -7/Lower Caves Scavenger-Tank | -7/Zion Scavenger-Skirmisher | -6/Proximity Caves Scavenger-Tank | -6/Factory Assassin | -6/Lower Caves Assassin | -6/Lower Caves Mutant | -6/Data Miner Mutant | -5/Proximity Caves Mutant | -5/Factory Resources | -11 -10 -10 -9 -9 -9 -8 -8 -8 -8 -8 -7 -7 -7 -7 -6 -6 -6 -6 -6 -5 -5 ----------- Run | Yrd Mat Min Mat Min Exi Min Mat Gar Mat Gar Fac Low Low Zio Pro Fac Low Low Dat Pro Fac Matter Collected 9725 | 312 390 302 1198 87 38 183 835 876 1045 542 1041 367 787 286 419 425 91 87 292 3 119 Remotely 183 | . . . . . . . . . . . 183 . . . . . . . . . . Salvage Created 9884 | 123 675 28 1764 198 . 37 935 918 1802 621 843 39 576 . 427 640 . 7 161 . 90 Parts 546 | 7 41 3 117 11 . . 59 41 107 48 41 3 26 . 16 25 . . 1 . . Haulers Intercepted 9 | . 2 . 6 . . . . . 1 . . . . . . . . . . . . Recyclers Shooed 8 | . 2 . 2 . . . . . . . 3 . . . . 1 . . . . . Parts Field Recycled . | . . . . . . . . . . . . . . . . . . . . . . Retrieved Matter . | . . . . . . . . . . . . . . . . . . . . . . Parts Self-Destructed 40 | . . . . . . . . . . . . 3 20 2 15 . . . . . . Prevented 5 | . . . . . . . . . . . . 3 1 . 1 . . . . . . Parts Restored . | . . . . . . . . . . . . . . . . . . . . . . Kills | -11 -10 -10 -9 -9 -9 -8 -8 -8 -8 -8 -7 -7 -7 -7 -6 -6 -6 -6 -6 -5 -5 ------- Run | Yrd Mat Min Mat Min Exi Min Mat Gar Mat Gar Fac Low Low Zio Pro Fac Low Low Dat Pro Fac Combat Hostiles Destroyed 222 | . 14 6 33 1 . 1 20 25 34 21 20 3 16 . 12 10 . 1 2 . 3 Melee 4 | . . . . . . . 1 . . . 1 . 1 . . 1 . . . . . Guns 100 | . 10 . 4 . . . 11 11 18 9 13 2 10 . 9 2 . 1 . . . Cannons 79 | . 4 6 26 1 . 1 8 6 15 5 . . . . . 7 . . . . . AOE 29 | . . . . . . . . 8 . 7 4 1 5 . 3 . . . 1 . . Classes Destroyed 20 | 2 5 1 4 . . . 1 . 1 2 1 . 2 . . . . 1 . . . Worker 15 | . . . 7 . . . . . 4 . 1 . . . . 3 . . . . . Builder 6 | . . . 3 . . . 2 . . . 1 . . . . . . . . . . Tunneler 10 | 3 . . 1 3 . . . . 2 . . . . . . 1 . . . . . Hauler 9 | . 2 . 6 . . . . . 1 . . . . . . . . . . . . Recycler 10 | 1 3 . 2 1 . . . . . . 2 . . . . 1 . . . . . Minesweeper 1 | . . . . . . . . . . . . . . . . . . 1 . . . Mechanic 2 | . . . . . . . . . 1 . . . 1 . . . . . . . . Operator 4 | . 1 . 2 . . . 1 . . . . . . . . . . . . . . Watcher 12 | . 2 . 4 . . . 1 . 2 . 2 . . . . 1 . . . . . Swarmer 53 | . 6 3 9 . . . . 8 2 7 . 3 2 . 8 3 . . . . 2 Cutter 2 | . . . . . . . . . . 2 . . . . . . . . . . . Grunt 87 | . 8 . 13 1 . . 10 15 18 6 12 . 2 . 1 . . . . . 1 Brawler 13 | . . . 2 . . 1 . . 4 . . . 5 . 1 . . . . . . Duelist 4 | . . . . . . . . . . . . . 3 . 1 . . . . . . Protector 1 | . . . . . . . . . . . 1 . . . . . . . . . . Sentry 42 | . . . 9 . . . 9 . 9 3 4 . 2 . 1 4 . 1 . . . Hunter 5 | . . . . . . . 1 2 1 1 . . . . . . . . . . . Programmer 8 | . . . . . . . . . . 2 3 . . . . 3 . . . . . Enhanced Grunt 2 | . . . . . . . . . . . . . . . . . . . 2 . . Master Thief 2 | . . . . . . . . . . . . . 2 . . . . . . . . Assembled 3 | . . 3 . . . . . . . . . . . . . . . . . . . Best Kill Streak 9 | 2 4 3 6 3 . 1 4 4 5 7 9 3 7 . 3 3 . 1 1 . 3 Combat Bots Only 7 | . 4 3 5 1 . 1 4 4 5 7 4 3 7 . 3 2 . 1 1 . 3 Max Kills in Single Turn 4 | 1 2 1 2 1 . 1 2 4 2 4 2 1 1 . 3 1 . 1 1 . 1 Gunslinging 1 | . 1 . . . . . . . . . . . . . . . . . . . . Exploded 4 | . . . . . . . . 4 . 4 2 1 1 . 3 . . . 1 . . Melee 1 | . . . . . . . 1 . . . 1 . 1 . . 1 . . . . . Uniques/NPCs Destroyed . | . . . . . . . . . . . . . . . . . . . . . . Combat | -11 -10 -10 -9 -9 -9 -8 -8 -8 -8 -8 -7 -7 -7 -7 -6 -6 -6 -6 -6 -5 -5 -------- Run | Yrd Mat Min Mat Min Exi Min Mat Gar Mat Gar Fac Low Low Zio Pro Fac Low Low Dat Pro Fac Hostile Shots Fired 1447 | . 88 34 105 . . . 88 97 133 101 286 16 79 4 45 135 . 31 60 22 123 Missed 454 | . 22 9 28 . . . 26 29 29 31 112 6 20 . 17 46 . 15 19 9 36 Hits 993 | . 66 25 77 . . . 62 68 104 70 174 10 59 4 28 89 . 16 41 13 87 Melee 24 | . . . . . . . . . . . . . 16 . 1 . . 3 . . 4 Projectile 969 | . 66 25 77 . . . 62 68 104 70 174 10 43 4 27 89 . 13 41 13 83 Critical Strikes 22 | . . . 2 . . . 3 1 4 1 4 . 2 . . 3 . . . . 2 Part Disruptions 4 | . . . . . . . . . . . 2 . . . . . . . 2 . . Damage Taken 14689 | . 666 232 822 . . . 862 1040 1483 953 2128 136 1127 75 364 983 . 71 1889 220 1638 Core 2733 | . 92 66 68 . . . 43 85 84 137 199 37 138 . . 74 . 11 513 162 1024 Absorbed by Shields 669 | . . . . . . . 103 60 . . 311 . . . . 119 . 28 48 . . Ignored by Resistances 405 | . . . . . . . 14 24 102 58 22 35 69 22 10 49 . . . . . Regen/Repaired (Parts) 340 | . . . 38 . . . . . . . . . . 302 . . . . . . . Core Remaining (%) 51 | 100 . 36 . . . 83 . . . 36 . . . . 46 . . . . 10 . Volleys Fired 575 | 21 73 14 76 1 2 5 49 62 71 48 41 7 41 . 20 21 1 17 4 . 1 Largest 4 | 2 2 2 3 3 1 3 3 3 3 3 4 2 4 . 4 4 1 4 1 . 1 Hottest 250 | 40 60 60 166 90 65 130 118 130 133 133 158 160 190 . 180 220 100 161 250 . 33 Shots Fired 1494 | 42 143 28 220 3 2 15 146 172 208 97 142 11 106 . 65 56 2 31 4 . 1 Gun 935 | 42 125 . 60 2 . 5 98 97 118 41 125 4 95 . 64 32 1 23 3 . . Cannon 514 | . 18 28 160 1 2 10 48 72 90 47 8 4 . . . 24 1 . . . 1 Launcher 45 | . . . . . . . . 3 . 9 9 3 11 . 1 . . 8 1 . . Special . | . . . . . . . . . . . . . . . . . . . . . . Kinetic 1066 | 42 143 28 141 3 . 10 128 120 137 48 122 . 59 . 38 31 1 14 . . 1 Thermal 365 | . . . 79 . 2 5 18 49 71 40 11 8 30 . 15 24 1 9 3 . . Explosive 45 | . . . . . . . . 3 . 9 9 3 11 . 1 . . 8 1 . . Electromagnetic 18 | . . . . . . . . . . . . . 6 . 11 1 . . . . . Robot Hit Streak 18 | 7 10 4 8 3 . 4 9 13 10 7 13 3 16 . 18 18 . 6 4 . . Robot Miss Streak 9 | 4 5 4 6 . . 7 4 3 5 4 8 3 5 . 4 4 . 9 3 . . Penetration Max 1 | . . . . . . . . 1 . . . . . . 1 . . . . . . Secondary Targets 7 | . 1 . . . . . . . . . 3 . 1 . 2 . . . . . . Max Gunslinging Chain 1 | . 1 . . . . . . . . . 1 . 1 . 1 . . . . . . Shots Hit Robots 929 | 25 86 12 109 7 7 6 88 94 124 57 102 6 78 . 47 44 . 15 11 . 11 Core Hits 514 | 9 39 6 58 4 . 1 39 44 64 32 92 5 57 . 26 19 . 9 10 . . Critical Kills 18 | . . . 3 2 . . 3 2 5 1 1 . 1 . . . . . . . . Critical Parts Destroyed 24 | . 2 . 1 1 . . 4 1 3 2 2 . 2 . 1 2 . . 2 . 1 Critical Strikes 48 | . 5 . 6 3 . 1 7 3 8 3 3 . 3 . 1 2 . . 2 . 1 Meltdown 2 | . . . 1 . . . . . 1 . . . . . . . . . . . . Destroy 23 | . 2 . . 1 . 1 6 3 6 2 1 . . . 1 . . . . . . Blast 5 | . 3 . 2 . . . . . . . . . . . . . . . . . . Smash 18 | . . . 3 2 . . 1 . 1 1 2 . 3 . . 2 . . 2 . 1 Melee Attacks 231 | . 4 . 22 6 15 . 19 8 12 37 22 12 6 . . 24 3 8 14 6 13 Impact 224 | . 4 . 22 6 8 . 19 8 12 37 22 12 6 . . 24 3 8 14 6 13 Slashing . | . . . . . . . . . . . . . . . . . . . . . . Piercing . | . . . . . . . . . . . . . . . . . . . . . . Sneak Attacks 28 | . . . 7 4 7 . . . 4 . 1 . 1 . . 4 . . . . . Combat Hostiles . | . . . . . . . . . . . . . . . . . . . . . . Follow-up Attacks . | . . . . . . . . . . . . . . . . . . . . . . Damage Inflicted 27069 | 208 810 224 2952 568 . 136 2129 2650 3160 2453 4243 217 2783 . 1134 1694 . 488 701 . 519 Guns 10149 | 201 599 . 514 . . 52 1062 1078 1262 492 1739 68 1395 . 945 255 . 276 211 . . Cannons 7216 | . 203 224 1729 26 . 84 894 916 1547 705 189 . . . . 699 . . . . . Explosions 5220 | . . . . . . . . 656 . 845 1864 149 1198 . 189 . . 151 168 . . Melee 4305 | . . . 656 536 . . 156 . 323 411 418 . 190 . . 740 . 61 322 . 492 Ramming 179 | 7 8 . 53 6 . . 17 . 28 . 33 . . . . . . . . . 27 Kinetic 10868 | 201 802 224 1225 26 . 82 1576 1155 1566 722 1690 . 710 . 517 239 . 133 . . . Thermal 6294 | . . . 1018 . . 54 380 839 1243 475 238 68 622 . 304 699 . 143 211 . . Explosive 5220 | . . . . . . . . 656 . 845 1864 149 1198 . 189 . . 151 168 . . Electromagnetic 203 | . . . . . . . . . . . . . 63 . 124 16 . . . . . Impact 4305 | . . . 656 536 . . 156 . 323 411 418 . 190 . . 740 . 61 322 . 492 Slashing . | . . . . . . . . . . . . . . . . . . . . . . Piercing . | . . . . . . . . . . . . . . . . . . . . . . Highest Corruption 5 | . . . 1 1 1 1 . . 1 5 4 4 4 4 . 2 2 2 2 2 4 Average Corruption 1 | . . . 1 1 1 1 . . 1 1 2 4 4 4 . 1 2 2 2 2 3 Corruption Purged . | . . . . . . . . . . . . . . . . . . . . . . Corruption Blocked . | . . . . . . . . . . . . . . . . . . . . . . Effects 191 | . . . 17 9 13 4 . . 14 10 11 23 33 4 . 13 9 11 7 7 6 Message Errors 43 | . . . 1 4 5 2 . . 1 . 3 8 9 1 . 2 3 1 1 1 1 Matter Fused 57 | . . . 4 2 5 1 . . 6 3 5 3 11 . . 3 1 4 3 4 2 Heat Flow Errors 20 | . . . 4 1 . . . . 1 1 1 5 1 2 . . 1 1 1 1 . Energy Discharges 21 | . . . 2 1 1 1 . . 2 3 . 3 2 1 . 1 1 1 . 1 1 Parts Rejected 2 | . . . 1 . . . . . . . 1 . . . . . . . . . . Parts Fused 2 | . . . . . . . . . . . . . . . . 1 . 1 . . . Data Loss (minor) 27 | . . . 2 1 2 . . . 4 1 . 4 7 . . 2 1 1 1 . 1 Data Loss (major) 4 | . . . . . . . . . . . . . 2 . . 2 . . . . . Misfires 6 | . . . 2 . . . . . . 1 1 . . . . 1 1 . . . . Alerts 6 | . . . . . . . . . . 1 . . . . . . 1 2 1 . 1 Weapon Failures 3 | . . . 1 . . . . . . . . . 1 . . 1 . . . . . Overload Shots . | . . . . . . . . . . . . . . . . . . . . . . Overflow Damage 2015 | . . 11 219 202 . . 17 106 150 135 256 . 128 . . 513 . . 104 . 174 Projectiles 119 | . . 11 11 . . . 17 20 . 44 . . . . . 16 . . . . . Explosions 180 | . . . . . . . . 86 . 13 40 . 41 . . . . . . . . Melee 1716 | . . . 208 202 . . . . 150 78 216 . 87 . . 497 . . 104 . 174 Knockbacks 35 | . 3 4 6 1 . . 3 1 1 2 1 . . . . 6 . . 4 . 3 Impact 17 | . . . 2 1 . . . . . . 1 . . . . 6 . . 4 . 3 Kinetic 16 | . 3 3 3 . . . 3 1 1 2 . . . . . . . . . . . Secondary 2 | . . 1 1 . . . . . . . . . . . . . . . . . . Self-Inflicted Damage 490 | . . . . . . . . 30 1 10 134 21 239 . 11 . . . 31 . 13 Shots 17 | . . . . . . . . 2 . 1 2 1 9 . 1 . . . 1 . . Rammed 20 | 1 1 . 2 1 . . 1 . 4 . 1 . . . . . . . . . 9 Targets Rammed 24 | 1 1 . 4 1 . . 1 . 6 . 1 . . . . . . . . . 9 Kicked . | . . . . . . . . . . . . . . . . . . . . . . Crushed 4 | . . . 2 . . . . . 2 . . . . . . . . . . . . Highest Temperature 346 | . 72 72 346 262 14 191 308 203 325 123 227 249 222 210 247 319 107 194 238 138 . Average Temperature 67 | . 17 26 81 105 10 78 64 63 65 34 83 78 40 92 68 93 44 76 104 82 . Received Heat Transfer 3807 | . 204 . 312 . . . 396 441 774 315 842 . 207 . 42 53 . 23 . . 198 Effects 2 | . . . . . . . . . 1 . . . . . . 1 . . . . . Short Circuit 2 | . . . . . . . . . 1 . . . . . . 1 . . . . . Siege Activations . | . . . . . . . . . . . . . . . . . . . . . . Martial Activations . | . . . . . . . . . . . . . . . . . . . . . . Shielding Activations . | . . . . . . . . . . . . . . . . . . . . . . Robots Disrupted . | . . . . . . . . . . . . . . . . . . . . . . Combat Hostiles . | . . . . . . . . . . . . . . . . . . . . . . Robots Corrupted 16 | . . . 5 1 . . . . 1 . 3 . . . . 3 . . . . 3 Combat Hostiles 7 | . . . 2 . . . . . . . 2 . . . . . . . . . 3 Parts Fried 27 | . . . 8 2 . . . . 7 . 1 . . . . 6 . . . . 3 Impact Corruptions 64 | . . . 10 12 . . . . 4 1 7 . 3 . . 17 . . 3 . 7 Robots Melted 3 | . . . 1 . . . . . 1 . . . . . . . . . 1 . . Combat Hostiles 3 | . . . 1 . . . . . 1 . . . . . . . . . 1 . . Parts Melted 6 | . . . 1 . . 1 . . . . . . . . 1 1 . . 2 . . Heat Transferred 10128 | . . . 1924 . . 74 518 1147 1672 609 359 150 1400 . 700 800 . 325 450 . . Parts Sabotaged . | . . . . . . . . . . . . . . . . . . . . . . Parts Stolen 8 | . . . . . . . . . . . . . 5 . . . . 3 . . . Parts Stripped . | . . . . . . . . . . . . . . . . . . . . . . Power Chain Reactions . | . . . . . . . . . . . . . . . . . . . . . . Alert | -11 -10 -10 -9 -9 -9 -8 -8 -8 -8 -8 -7 -7 -7 -7 -6 -6 -6 -6 -6 -5 -5 ------- Run | Yrd Mat Min Mat Min Exi Min Mat Gar Mat Gar Fac Low Low Zio Pro Fac Low Low Dat Pro Fac Maximum Alert Level 4 | . . . 1 . . . . 3 3 4 3 . . . . . . . . . . Low Security (%) 61 | 100 100 100 71 100 . 100 100 11 . . . . . . . 100 . . . . 100 Level 1 7 | . . . 28 . . . . 11 14 . . . . . . . . . . . . Level 2 20 | . . . . . . . . 31 76 9 96 . . . . . . . . . . Level 3 8 | . . . . . . . . 45 9 57 3 . . . . . . . . . . Level 4 1 | . . . . . . . . . . 33 . . . . . . . . . . . Level 5 . | . . . . . . . . . . . . . . . . . . . . . . High Security . | . . . . . . . . . . . . . . . . . . . . . . Max Security . | . . . . . . . . . . . . . . . . . . . . . . Peak Influence 1260 | 10 153 107 344 112 . 34 196 1009 867 1260 743 . . . . 58 . . . . 105 Initial 661 | . . 47 . 112 . . . 70 491 560 661 . . . . 3 . . . . . Average 271 | . 27 8 151 19 . 4 95 655 556 943 614 . . . . 13 . . . . 13 Influence Increases 7700 | 20 488 85 1201 60 . 94 809 989 1235 720 708 70 340 . 260 375 . 25 . 15 206 Destroy 0b10 Robot/C 4320 | . 280 60 660 20 . 60 400 500 680 420 380 60 280 . 240 200 . 20 . . 60 Destroy 0b10 Robot/NC 360 | 20 40 . 125 30 . . 20 . 50 . 35 . 5 . . 30 . 5 . . . Destroy Leader 932 | . 58 10 200 10 . 10 132 50 196 40 114 10 10 . 20 62 . . . . 10 Allied During Kill 9 | . . . . . . 7 2 . . . . . . . . . . . . . . Trap Triggered on 0b10 20 | . . . . . . . . . . . . . . . . . . . . . 20 Successful Hack 265 | . 30 . 24 . . . 40 30 43 14 30 . . . . 28 . . . . 26 Select Force Hacks 180 | . 60 . 60 . . . 60 . . . . . . . . . . . . . . Disable Machine 390 | . 15 15 60 . . 15 45 45 90 15 45 . . . . 30 . . . . 15 Anti-Garrison Action 300 | . . . . . . . . 200 . 100 . . . . . . . . . . . Destroy Structure 399 | . 5 . 27 . . 2 35 74 41 131 74 . . . . 10 . . . . . Partial Spotted 75 | . . . . . . . 30 15 15 . 15 . . . . . . . . . . Lose Combat Pursuer 450 | . . . 45 . . . 45 75 120 . 15 . 45 . . 15 . . . 15 75 Influence Decreases 7700 | 20 365 208 912 349 . 94 701 88 1382 322 1249 741 388 . 254 344 37 25 . 15 206 Entered New Map 2005 | . . 76 . 177 . . . 38 518 302 599 267 10 . . 3 15 . . . . Time Decay 4574 | 20 355 132 612 172 . 54 571 . 654 . 530 474 308 . 234 281 22 25 . 15 115 Lost Part 501 | . 10 . . . . . 10 50 60 20 120 . 60 . 20 60 . . . . 91 Lost Ally 70 | . . . . . . 40 20 . . . . . 10 . . . . . . . . Purge Threat 550 | . . . 300 . . . 100 . 150 . . . . . . . . . . . . Squads Dispatched 39 | . 3 . 5 2 . . 3 . 9 . 10 . 1 . . 4 . . . . 2 Investigation 11 | . 3 . 3 1 . . 2 . 2 . . . . . . . . . . . . Extermination 8 | . . . . . . . . . . . 3 . . . . 4 . . . . 1 Reinforcement 7 | . . . 2 . . . 1 . 3 . 1 . . . . . . . . . . Assault 5 | . . . . 1 . . . . 1 . 2 . 1 . . . . . . . . Garrison 7 | . . . . . . . . . 3 . 4 . . . . . . . . . . Intercept 1 | . . . . . . . . . . . . . . . . . . . . . 1 Searches Triggered . | . . . . . . . . . . . . . . . . . . . . . . Construction Impeded 1 | . . . . . . . . . . . 1 . . . . . . . . . . Haulers Reinforced . | . . . . . . . . . . . . . . . . . . . . . . Active Scanning Responses . | . . . . . . . . . . . . . . . . . . . . . . Cargo Convoy Interrupts 1 | . . . . . . . . . . . 1 . . . . . . . . . . Stealth | -11 -10 -10 -9 -9 -9 -8 -8 -8 -8 -8 -7 -7 -7 -7 -6 -6 -6 -6 -6 -5 -5 --------- Run | Yrd Mat Min Mat Min Exi Min Mat Gar Mat Gar Fac Low Low Zio Pro Fac Low Low Dat Pro Fac Distress Signals 18 | . . 1 5 . . . 4 . 5 . 2 . . . . 1 . . . . . Communications Jammed . | . . . . . . . . . . . . . . . . . . . . . . Distress Signals . | . . . . . . . . . . . . . . . . . . . . . . Times Spotted 345 | . 21 6 52 . 3 2 34 27 54 23 39 3 24 1 12 17 . 4 4 8 11 Peak Tracking Total 10 | . 4 3 5 . 9 2 7 9 7 5 10 3 7 1 3 4 . 3 3 3 10 Tactical Retreats 24 | . . . 3 . . . 3 4 5 . 1 . 3 . . 1 . . . 1 3 Traps | -11 -10 -10 -9 -9 -9 -8 -8 -8 -8 -8 -7 -7 -7 -7 -6 -6 -6 -6 -6 -5 -5 ------- Run | Yrd Mat Min Mat Min Exi Min Mat Gar Mat Gar Fac Low Low Zio Pro Fac Low Low Dat Pro Fac Traps Triggered 5 | . 2 . 1 . . . . 1 1 . . . . . . . . . . . . Indirectly . | . . . . . . . . . . . . . . . . . . . . . . Trap Hack Attempts 65 | . . . 65 . . . . . . . . . . . . . . . . . . Triggered . | . . . . . . . . . . . . . . . . . . . . . . Disarmed 6 | . . . 6 . . . . . . . . . . . . . . . . . . Reprogrammed . | . . . . . . . . . . . . . . . . . . . . . . Reused 3 | . . . . . . . . . . . . . 1 . . . . . . . 2 Traps Extracted . | . . . . . . . . . . . . . . . . . . . . . . Installed 4 | . . . . . . . . . . . . . 1 . . . . . 1 . 2 Triggered 3 | . . . . . . . . . . . . . 1 . . . . . . . 2 Most Traps Carried 2 | . . . . . . . . . . . . . 1 . . . . 2 2 2 2 Machines | -11 -10 -10 -9 -9 -9 -8 -8 -8 -8 -8 -7 -7 -7 -7 -6 -6 -6 -6 -6 -5 -5 ---------- Run | Yrd Mat Min Mat Min Exi Min Mat Gar Mat Gar Fac Low Low Zio Pro Fac Low Low Dat Pro Fac Machines Disabled 38 | . 1 1 4 . 6 1 3 6 6 4 3 . . . . 2 . . . . 1 Max in Single Turn 2 | . 1 1 1 . 1 . 1 2 1 2 2 . . . . 1 . . . . 1 Garrison Relay 2 | . . . . . . . . 1 . 1 . . . . . . . . . . . Phase Generator 2 | . . . . . . . . 1 . 1 . . . . . . . . . . . Machines Repaired . | . . . . . . . . . . . . . . . . . . . . . . Machines Dismantled . | . . . . . . . . . . . . . . . . . . . . . . Machines Sabotaged . | . . . . . . . . . . . . . . . . . . . . . . Overloaded Fab Kills . | . . . . . . . . . . . . . . . . . . . . . . Hacking | -11 -10 -10 -9 -9 -9 -8 -8 -8 -8 -8 -7 -7 -7 -7 -6 -6 -6 -6 -6 -5 -5 --------- Run | Yrd Mat Min Mat Min Exi Min Mat Gar Mat Gar Fac Low Low Zio Pro Fac Low Low Dat Pro Fac Machines Accessed 76 | . 10 . 15 1 2 1 15 2 10 1 5 . . 1 . 4 . . 3 . 6 Terminals 43 | . 8 . 9 . . 1 9 2 7 1 3 . . . . . . . . . 3 Fabricators 2 | . . . . . . . . . . . . . . . . 2 . . . . . Repair Stations 6 | . . . 2 . . . 1 . 1 . . . . . . 1 . . . . 1 Recycling Units 8 | . 2 . 2 . . . 2 . . . . . . . . 1 . . . . 1 Scanalyzers 7 | . . . 2 . . . 2 . 1 . 1 . . . . . . . . . 1 Garrison Access 3 | . . . . . . . 1 . 1 . 1 . . . . . . . . . . Total Hacks 246 | . 37 . 45 1 5 3 52 3 37 2 13 . . 3 . 6 . . 25 . 14 Successful 154 | . 19 . 29 1 5 1 30 2 20 2 7 . . 3 . 4 . . 25 . 6 Failed 89 | . 18 . 15 . . 2 21 1 17 . 5 . . . . 2 . . . . 8 Catastrophic 13 | . 2 . 3 . . 1 2 . 1 . 1 . . . . 1 . . . . 2 Database Lockouts 3 | . . . 1 . . . 1 . . . 1 . . . . . . . . . . Manual 99 | . 17 . 21 . 1 3 23 1 20 1 4 . . . . 2 . . . . 6 Terminals 144 | . 35 . 30 . . 3 27 3 31 2 5 . . . . . . . . . 8 Fabricators 4 | . . . . . . . . . . . . . . . . 4 . . . . . Repair Stations 11 | . . . 4 . . . 2 . 2 . . . . . . 1 . . . . 2 Recycling Units 10 | . 2 . 2 . . . 3 . . . . . . . . 1 . . . . 2 Scanalyzers 39 | . . . 9 . . . 18 . 3 . 7 . . . . . . . . . 2 Garrison Access 4 | . . . . . . . 2 . 1 . 1 . . . . . . . . . . Terminal Hacks 71 | . 10 . 9 1 5 1 4 2 7 1 . . . 3 . . . . 25 . 3 Record 10 | . . . . . 4 . . . . . . . . . . . . . 6 . . Part Schematic 14 | . . . . . . . . . . . . . . 3 . . . . 11 . . Robot Schematic 5 | . . . . . . . . . . . . . . . . . . . 5 . . Robot Analysis 3 | . . . 1 . . 1 1 . . . . . . . . . . . . . . Prototype ID Bank 11 | . 2 . 3 . . . . . 3 . . . . . . . . . 3 . . Open Door 1 | . . . . 1 . . . . . . . . . . . . . . . . . Emergency Access Points 4 | . 2 . . . . . . 1 . 1 . . . . . . . . . . . Terminal Index 2 | . 1 . 1 . . . . . . . . . . . . . . . . . . Unreport Threat 5 | . . . 2 . . . 1 . 1 . . . . . . . . . . . 1 Locate Traps 5 | . 2 . 1 . . . . . 2 . . . . . . . . . . . . Transport Status 1 | . 1 . . . . . . . . . . . . . . . . . . . . Recall Extermination 1 | . . . . . . . . . . . . . . . . . . . . . 1 Hauler Manifests 4 | . 1 . 1 . . . 1 . 1 . . . . . . . . . . . . Zone Layout 3 | . 1 . . . . . 1 . . . . . . . . . . . . . 1 Security Stations 1 | . . . . . . . . 1 . . . . . . . . . . . . . Proto ID Catalog 1 | . . . . . 1 . . . . . . . . . . . . . . . . Fabricator Hacks 2 | . . . . . . . . . . . . . . . . 2 . . . . . Network Status 1 | . . . . . . . . . . . . . . . . 1 . . . . . Build 1 | . . . . . . . . . . . . . . . . 1 . . . . . Repair Station Hacks 5 | . . . 3 . . . 1 . 1 . . . . . . . . . . . . Scan Component 4 | . . . 2 . . . 1 . 1 . . . . . . . . . . . . Repair 1 | . . . 1 . . . . . . . . . . . . . . . . . . Recycling Unit Hacks 2 | . . . . . . . . . . . . . . . . 1 . . . . 1 Retrieve Components 2 | . . . . . . . . . . . . . . . . 1 . . . . 1 Scanalyzer 30 | . . . 7 . . . 15 . 3 . 5 . . . . . . . . . . Insert Component 11 | . . . 2 . . . 8 . . . 1 . . . . . . . . . . Analyze 10 | . . . 3 . . . 7 . . . . . . . . . . . . . . Retrieve Study 9 | . . . 2 . . . . . 3 . 4 . . . . . . . . . . Garrison Access Hacks 2 | . . . . . . . 1 . 1 . . . . . . . . . . . . Unlock Access 2 | . . . . . . . 1 . 1 . . . . . . . . . . . . Unauthorized Hacks 42 | . 9 . 10 . . . 9 . 8 1 2 . . . . 1 . . . . 2 Terminals 33 | . 7 . 8 . . . 7 . 8 1 1 . . . . . . . . . 1 Botnet 7 | . 1 . 1 . . . 1 . 1 1 1 . . . . . . . . . 1 Operators 2 | . 1 . 1 . . . . . . . . . . . . . . . . . . Skim 24 | . 5 . 6 . . . 6 . 7 . . . . . . . . . . . . Fabricators 1 | . . . . . . . . . . . . . . . . 1 . . . . . Haulers 1 | . . . . . . . . . . . . . . . . 1 . . . . . Repair Stations . | . . . . . . . . . . . . . . . . . . . . . . Recycling Units 7 | . 2 . 2 . . . 2 . . . . . . . . . . . . . 1 Recyclers 1 | . . . . . . . . . . . . . . . . . . . . . 1 Tunnel 6 | . 2 . 2 . . . 2 . . . . . . . . . . . . . . Scanalyzers . | . . . . . . . . . . . . . . . . . . . . . . Garrison Access 1 | . . . . . . . . . . . 1 . . . . . . . . . . Reprogram 1 | . . . . . . . . . . . 1 . . . . . . . . . . Data Cores Recovered 1 | . . . . . . . 1 . . . . . . . . . . . . . . Used . | . . . . . . . . . . . . . . . . . . . . . . Hacking Detections 56 | . 8 . 10 . . 1 12 1 9 1 5 . . . . 3 . . . . 6 Full Trace Events 3 | . . . 2 . . . . . 1 . . . . . . . . . . . . Feedback Events 1 | . . . . . . . . . 1 . . . . . . . . . . . . Corruption 1 | . . . . . . . . . 1 . . . . . . . . . . . . Feedback Blocked . | . . . . . . . . . . . . . . . . . . . . . . Robot Schematics Acquired 5 | . . . . . . . . . . . . . . . . . . . 5 . . Robots Built . | . . . . . . . . . . . . . . . . . . . . . . Authchips . | . . . . . . . . . . . . . . . . . . . . . . Time . | . . . . . . . . . . . . . . . . . . . . . . Total Robot Build Rating . | . . . . . . . . . . . . . . . . . . . . . . Part Schematics Acquired 22 | . . . 1 . . . 7 . . . . . . 3 . . . . 11 . . Parts Built 1 | . . . . . . . . . . . . . . . . 1 . . . . . Authchips . | . . . . . . . . . . . . . . . . . . . . . . Time 106 | . . . . . . . . . . . . . . . . 106 . . . . . Total Part Build Rating 6 | . . . . . . . . . . . . . . . . 6 . . . . . Part Studies Acquired 8 | . . . 2 . . . . . 2 . 4 . . . . . . . . . . Parts Repaired 1 | . . . 1 . . . . . . . . . . . . . . . . . . Time 38 | . . . 38 . . . . . . . . . . . . . . . . . . Parts Recycled . | . . . . . . . . . . . . . . . . . . . . . . Recycled Matter . | . . . . . . . . . . . . . . . . . . . . . . Retrieved Matter . | . . . . . . . . . . . . . . . . . . . . . . Retrieved Components 2 | . . . . . . . . . . . . . . . . 2 . . . . . Parts Scanalyzed 9 | . . . 2 . . . 7 . . . . . . . . . . . . . . Part Schematics Acquired 8 | . . . 1 . . . 7 . . . . . . . . . . . . . . Parts Damaged . | . . . . . . . . . . . . . . . . . . . . . . Bothacking | -11 -10 -10 -9 -9 -9 -8 -8 -8 -8 -8 -7 -7 -7 -7 -6 -6 -6 -6 -6 -5 -5 ------------ Run | Yrd Mat Min Mat Min Exi Min Mat Gar Mat Gar Fac Low Low Zio Pro Fac Low Low Dat Pro Fac Used RIF Installer . | . . . . . . . . . . . . . . . . . . . . . . Robots Hacked 7 | . . . . . 7 . . . . . . . . . . . . . . . . Non-combat 3 | . . . . . 3 . . . . . . . . . . . . . . . . Combat 4 | . . . . . 4 . . . . . . . . . . . . . . . . Robot Hacks Applied 7 | . . . . . 7 . . . . . . . . . . . . . . . . parse_system 7 | . . . . . 7 . . . . . . . . . . . . . . . . Relay Couplers Released 10 | . . . . . . . . 3 . 7 . . . . . . . . . . . Machine Destruction 7 | . . . . . . . . 3 . 4 . . . . . . . . . . . Programmers 3 | . . . . . . . . . . 3 . . . . . . . . . . . Fabnet Peak Effective % . | . . . . . . . . . . . . . . . . . . . . . . Robots Rewired 2 | . . . . . . . . . . . . . 2 . . . . . . . . Allies Hacked . | . . . . . . . . . . . . . . . . . . . . . . Hacks Repelled . | . . . . . . . . . . . . . . . . . . . . . . Allies | -11 -10 -10 -9 -9 -9 -8 -8 -8 -8 -8 -7 -7 -7 -7 -6 -6 -6 -6 -6 -5 -5 -------- Run | Yrd Mat Min Mat Min Exi Min Mat Gar Mat Gar Fac Low Low Zio Pro Fac Low Low Dat Pro Fac Total Allies 6 | . . . . 4 . . . . . . . . 2 . . . . . . . . Largest Group 4 | . . . . 4 4 3 1 . . . . . 2 . . . . . . . . Highest-Rated Group 71 | . . . . 71 71 40 16 . . . . . 48 . . . . . . . . Highest-Rated Ally 32 | . . . . 31 31 16 16 . . . . . 32 . . . . . . . . Initial Warlord ECA Mod 5 | . . . . . . . . . 4 4 5 5 5 5 4 4 4 4 4 3 3 Total Orders 22 | . . . . . 3 2 . . . . . 1 3 . . 6 7 . . . . STAY 4 | . . . . . 2 . . . . . . . 1 . . . 1 . . . . ROAM 1 | . . . . . . . . . . . . . . . . 1 . . . . . FOLLOW 4 | . . . . . 1 . . . . . . . 1 . . 2 . . . . . EXPLORE 8 | . . . . . . 1 . . . . . 1 1 . . 1 4 . . . . RETURN 5 | . . . . . . 1 . . . . . . . . . 2 2 . . . . Ally Attacks 43 | . . . . . 4 23 6 . . . . . 10 . . . . . . . . Total Damage 556 | . . . . . . 295 61 . . . . . 200 . . . . . . . . Kills 2 | . . . . . . 2 . . . . . . . . . . . . . . . Allies Corrupted 1 | . . . . . . 1 . . . . . . . . . . . . . . . Allies Melted . | . . . . . . . . . . . . . . . . . . . . . . Intel | -11 -10 -10 -9 -9 -9 -8 -8 -8 -8 -8 -7 -7 -7 -7 -6 -6 -6 -6 -6 -5 -5 ------- Run | Yrd Mat Min Mat Min Exi Min Mat Gar Mat Gar Fac Low Low Zio Pro Fac Low Low Dat Pro Fac Active Infowar (turns) 23154 | 77 1336 1396 2193 905 1492 350 1536 759 1026 717 1052 1198 1124 2548 871 1712 910 958 208 432 354 Sensors 3584 | . . . . . . . . . . . . . . . . 1058 910 640 207 415 354 Structural 4671 | . . . . . . . . . . . 95 . 79 2043 553 . 591 958 198 13 141 Traps 1 | . . . . . . . . . . . 1 . . . . . . . . . . Seismic 16957 | 77 1336 1396 2193 905 1492 350 1536 759 1026 717 1051 1198 987 271 756 531 . . 8 368 . Jamming 2842 | . . . . . . . . . . . . . 136 505 871 1030 7 272 4 17 . ECM 2 | . . . . . . . . . . . . . . 2 . . . . . . . Robot Analysis Total 154 | . . . 1 . . 1 1 . . . . . . . . . . . 151 . . Derelict Logs Recovered 8 | . . 2 . 1 . . . . . . . 1 1 . 1 . . 1 . 1 . Drone Launches 7 | . . . . . . 1 . . . . . 1 1 . . 2 2 . . . . Drone Recoveries 4 | . . . . . . 1 . . . . . 1 . . . 2 . . . . . Exploration | -11 -10 -10 -9 -9 -9 -8 -8 -8 -8 -8 -7 -7 -7 -7 -6 -6 -6 -6 -6 -5 -5 ------------- Run | Yrd Mat Min Mat Min Exi Min Mat Gar Mat Gar Fac Low Low Zio Pro Fac Low Low Dat Pro Fac Turns Passed 29380 | 204 1872 1640 3128 936 1492 380 1971 1752 2423 1099 1490 1216 1207 2551 871 1875 910 958 420 465 520 Spaces Moved 14211 | 87 849 491 1260 526 863 200 779 877 984 479 682 508 734 1461 484 870 367 512 221 535 442 Core 832 | 3 . . . . . . . . . . . . . . . . . . 34 535 260 Treads 11670 | 84 849 491 1260 526 863 200 779 877 798 479 623 . 21 1461 484 809 367 512 187 . . Legs 178 | . . . . . . . . . . . . . . . . . . . . . 178 Wheels 1527 | . . . . . . . . . 186 . 59 508 713 . . 61 . . . . . Hover 4 | . . . . . . . . . . . . . . . . . . . . . 4 Flight . | . . . . . . . . . . . . . . . . . . . . . . Fastest Speed 50 | 50 160 240 160 166 166 166 161 161 155 156 101 105 105 160 160 160 160 160 50 50 50 Average Speed 161 | 156 182 240 187 167 166 166 166 161 183 156 154 105 127 169 161 187 160 160 143 50 82 Slowest Speed 320 | 160 240 240 250 170 166 166 167 161 280 156 200 105 220 226 226 320 160 160 160 100 150 Overloaded Moves . | . . . . . . . . . . . . . . . . . . . . . . Propulsion Burnouts . | . . . . . . . . . . . . . . . . . . . . . . Robots Hopped . | . . . . . . . . . . . . . . . . . . . . . . Potential Cave-ins . | . . . . . . . . . . . . . . . . . . . . . . Cave-ins Triggered . | . . . . . . . . . . . . . . . . . . . . . . Exploration Rate (%) 69 | 5 97 84 98 91 73 96 80 93 75 71 17 94 95 83 59 14 98 62 80 61 12 Regions Visited 21 Branch Regions 12 Pre-discovered Areas 41 | . 2 2 3 . 1 . 5 . 2 . . 1 . 1 . . . . 24 . . Known Exits Taken 12 | . 1 1 . . . 1 1 . 1 . 1 . . . 1 1 1 1 1 1 . Unknown Exits Taken 7 | 1 . . 1 1 1 . . . . . . 1 1 1 . . . . . . . Scrap Searched 22 | . . 1 . 2 . 1 . . . . . 5 5 3 1 . 3 1 . . . Spaces Dug 111 | . 4 . 14 . 1 . 15 7 6 8 11 12 2 . 10 7 3 6 . 5 . Terrain Destroyed 578 | . 4 . 22 . 1 2 29 95 34 133 89 24 79 . 11 8 3 34 5 5 . Melee 98 | . 4 . 14 . 1 . 15 4 6 8 11 12 2 . . 7 3 6 . 5 . Projectile 65 | . . . 8 . . 2 14 6 28 4 . . . . 1 1 . 1 . . . AOE 415 | . . . . . . . . 85 . 121 78 12 77 . 10 . . 27 5 . . Terrain Rammed . | . . . . . . . . . . . . . . . . . . . . . . Walls Destroyed . | . . . . . . . . . . . . . . . . . . . . . . Machines Disabled . | . . . . . . . . . . . . . . . . . . . . . . Actions | -11 -10 -10 -9 -9 -9 -8 -8 -8 -8 -8 -7 -7 -7 -7 -6 -6 -6 -6 -6 -5 -5 --------- Run | Yrd Mat Min Mat Min Exi Min Mat Gar Mat Gar Fac Low Low Zio Pro Fac Low Low Dat Pro Fac Total 19094 | 118 1048 925 1805 567 901 235 1311 1086 1422 661 983 1154 909 1544 524 1013 684 610 296 725 573 Wait 3089 | . 60 406 274 19 7 27 395 108 285 57 145 616 33 17 8 33 308 54 19 159 59 Move 14188 | 86 848 490 1259 525 862 199 778 874 983 478 681 507 733 1460 483 869 366 511 220 534 442 Hop . | . . . . . . . . . . . . . . . . . . . . . . Pick Up 150 | 3 22 2 15 4 2 . 15 4 8 1 17 5 12 8 . 12 1 6 7 2 4 Fast Attach 99 | 7 3 1 8 . 3 . 4 1 2 . 10 . 5 15 1 16 1 . 4 1 17 Attach 89 | . 2 . 1 . 1 . 3 5 6 2 15 3 9 6 . 4 1 4 10 10 7 Detach 52 | . 3 1 1 . 1 . . 1 . . 2 . . 10 . 2 1 3 6 11 10 Swap 297 | . 15 8 53 6 3 4 29 20 35 34 29 3 20 5 12 17 . 4 . . . Drop 189 | . 17 3 27 5 5 . 18 3 14 4 20 1 7 23 . 15 2 3 11 2 9 Fire 575 | 21 73 14 76 1 2 5 49 62 71 48 41 7 41 . 20 21 1 17 4 . 1 Melee 231 | . 4 . 22 6 15 . 19 8 12 37 22 12 6 . . 24 3 8 14 6 13 Ram 10 | . . . . . . . . . 1 . . . . . . . . . . . 9 Kick . | . . . . . . . . . . . . . . . . . . . . . . Crush 14 | 1 1 . 4 1 . . 1 . 5 . 1 . . . . . . . . . . Escape Stasis . | . . . . . . . . . . . . . . . . . . . . . . Rewire 42 | . . . . . . . . . . . . . 42 . . . . . . . . Trap 69 | . . . 65 . . . . . . . . . 1 . . . . . 1 . 2 Miscellaneous . | . . . . . . . . . . . . . . . . . . . . . . Route ------- -11/Scrapyard -10/Materials (discovered 6 exits: *Mat x3 / *Min x2 / Sub) -10/Mines (discovered 2 exits: *Mat / *Sub) -9/Materials (discovered 7 exits: *Mat x3 / *Min x2 / *Sto x2) -9/Mines (discovered 3 exits: *Mat x2 / *Exi) -9/Exiles (discovered 2 exits: *Min x2) -8/Mines (discovered 2 exits: *Mat x2) -8/Materials (discovered 4 exits: *Fac x3 / Gar) -8/Garrison (discovered 3 exits: *Mat x3) -8/Materials (discovered 4 exits: *Fac x3 / Gar) -8/Garrison (discovered 3 exits: *Fac x3) -7/Factory (discovered 4 exits: Fac x2 / *Low x2) -7/Lower Caves -7/Lower Caves (discovered 2 exits: *Fac / *Zio) -7/Zion -6/Proximity Caves -6/Factory (discovered 4 exits: *Fac x3 / *Low) -6/Lower Caves -6/Lower Caves -6/Data Miner -5/Proximity Caves -5/Factory History --------- Turn | Location | Event 6 | -11/Scrapyard | Discovered new exit (range 15) 205 | -11/Scrapyard | Entered Materials 319 | -10/Materials | Build established: Mutant 471 | -10/Materials | Discovered new exit (range 14) 570 | -10/Materials | Discovered new exit (range 9) 815 | -10/Materials | Discovered new exit (range 12) 1156 | -10/Materials | Discovered new exit (range 16) 1184 | -10/Materials | Learned Storage garrison access intel 1234 | -10/Materials | Identified exit to Subcaves 1234 | -10/Materials | Identified exit to Materials 1274 | -10/Materials | Identified exit to Mines 1305 | -10/Materials | Loaded intel: 1 repair station location 1328 | -10/Materials | Learned location of 1 exit from Recycling 1367 | -10/Materials | Learned 2 Materials zone layouts 2077 | -10/Materials | Entered Mines 2180 | -10/Mines | Discovered exit to Subcaves (range 6) 2186 | -10/Mines | Assembled infested the area 2781 | -10/Mines | Core integrity fell below 50% 3091 | -10/Mines | Received a Rocket Launcher from a helpful Derelict 3516 | -10/Mines | A weapon hastily lodged in a ceiling crevice suddenly fell to the ground 3651 | -10/Mines | Learned location of Storage (-9) 3717 | -10/Mines | Entered Materials 3717 | -9/Materials | Evolved 2 slots: Propulsion x1, Weapon x1 3718 | -9/Materials | Identified exit to Storage 4232 | -9/Materials | Build established: Gunner 4303 | -9/Materials | Discovered new exit (range 16) 4581 | -9/Materials | Central database locked down 4862 | -9/Materials | Discovered new exit (range 16) 5070 | -9/Materials | Repaired Arm. Treads 5230 | -9/Materials | Build established: Mutant 5424 | -9/Materials | Discovered new exit (range 15) 5626 | -9/Materials | Build established: Gunner 5846 | -9/Materials | Discovered new exit (range 15) 6054 | -9/Materials | Learned Storage security intel 6103 | -9/Materials | Discovered exit to Storage (range 15) 6118 | -9/Materials | Identified exit to Materials 6170 | -9/Materials | Learned Storage emergency access door positions 6212 | -9/Materials | Loaded intel: 11 terminal locations 6246 | -9/Materials | Learned 2 Materials zone layouts 6302 | -9/Materials | Learned location of Zion (-7) 6347 | -9/Materials | Learned Materials emergency access door positions 6400 | -9/Materials | Learned 4 Recycling zone layouts 6845 | -9/Materials | Entered Mines 6945 | -9/Mines | Learned 4 Materials zone layouts 7039 | -9/Mines | Deemed a non-threat by the Exiles lab entrance 7039 | -9/Mines | Discovered new exit (range 5) 7067 | -9/Mines | Build established: Mutant 7196 | -9/Mines | Met a Derelict shopkeep closing up shop 7374 | -9/Mines | Assisted by bots powering up and referring to "LRC-V3" 7379 | -9/Mines | Discovered exit to Materials (range 12) 7572 | -9/Mines | Build established: Gunner 7648 | -9/Mines | Discovered exit to Materials (range 8) 7656 | -9/Mines | Met a Derelict testing a Signal Generator 7781 | -9/Mines | Entered Exiles 7781 | -9/Exiles | Accompanied by 4 allies 7823 | -9/Exiles | Met 8R-AWN 7865 | -9/Exiles | Met EX-HEX 7916 | -9/Exiles | Met EX-BIN 7981 | -9/Exiles | Met EX-DEC 8088 | -9/Exiles | Build established: Mutant 8274 | -9/Exiles | Discovered new exit (range 12) 8457 | -9/Exiles | Discovered new exit (range 15) 8635 | -9/Exiles | Aligned with FarCom system 8636 | -9/Exiles | Given EX-Vault access code 8679 | -9/Exiles | Opened EX-Vault 8689 | -9/Exiles | Found Supersonic Drone Bay 8725 | -9/Exiles | Warned to stay clear of 0b10 Research branches 9232 | -9/Exiles | Attacked by the Exiles 9273 | -9/Exiles | Left Exiles lab with Supersonic Drone Bay 9273 | -9/Exiles | Entered Mines 9273 | -8/Mines | Accompanied by 3 allies 9279 | -8/Mines | Discovered exit to Materials (range 34) 9284 | -8/Mines | Discovered exit to Materials (range 39) 9520 | -8/Mines | Build established: Gunner 9653 | -8/Mines | Entered Materials 9653 | -8/Materials | Accompanied by 1 ally 9653 | -8/Materials | Evolved 2 slots: Propulsion x1, Utility x1 9654 | -8/Materials | Identified exit to Factory 9947 | -8/Materials | Build established: Tank 10329 | -8/Materials | Learned location of 1 exit from Recycling 10368 | -8/Materials | Learned location of 1 exit from Recycling 10396 | -8/Materials | Learned Factory scanalyzer intel 10420 | -8/Materials | Learned location of 1 exit from Recycling 10421 | -8/Materials | Learned 2 Storage zone layouts 10451 | -8/Materials | Learned Storage stockpile data 10546 | -8/Materials | Discovered exit to Factory (range 3) 11126 | -8/Materials | Central database locked down 11619 | -8/Materials | Identified exit to Garrison 11624 | -8/Materials | Entered Garrison 11660 | -8/Garrison | Triggered checkpoint 11718 | -8/Garrison | Garrison Relay disabled 11876 | -8/Garrison | Phase Generator disabled 12165 | -8/Garrison | Triggered checkpoint 12229 | -8/Garrison | Triggered checkpoint 12292 | -8/Garrison | Discovered new exit (range 10) 12690 | -8/Garrison | Discovered new exit (range 15) 12776 | -8/Garrison | Triggered checkpoint 12871 | -8/Garrison | Attempted to access garrison exit controls, blocked by remote lockdown 12918 | -8/Garrison | Build established: Gunner 12943 | -8/Garrison | Triggered checkpoint 13091 | -8/Garrison | Learned Materials security intel 13098 | -8/Garrison | Discovered new exit (range 5) 13104 | -8/Garrison | Attempted to access garrison exit controls, blocked by remote lockdown 13128 | -8/Garrison | Triggered checkpoint 13376 | -8/Garrison | Entered Materials 13746 | -8/Materials | Discovered exit to Factory (range 10) 13788 | -8/Materials | Identified exit to Garrison 13855 | -8/Materials | Garrison activated, responded to threat 14263 | -8/Materials | Watched by a mysterious "MATRIX" hacker. 14329 | -8/Materials | Learned 4 Factory zone layouts 14513 | -8/Materials | Learned Factory stockpile data 14539 | -8/Materials | Build established: Scavenger-Tank 14587 | -8/Materials | Learned Storage stockpile data 14607 | -8/Materials | Learned location of 2 exits from Factory 14673 | -8/Materials | Learned location of Lower Caves (-6) 14751 | -8/Materials | Lost 4 parts (1n1u2w) 14780 | -8/Materials | Learned Factory emergency access door positions 14976 | -8/Materials | First assault squad dispatched 15581 | -8/Materials | Build established: Scavenger-Mutant 15799 | -8/Materials | Entered Garrison 15891 | -8/Garrison | Triggered checkpoint 15925 | -8/Garrison | Destroyed 7 combat bots 16107 | -8/Garrison | Triggered checkpoint 16317 | -8/Garrison | Triggered checkpoint 16489 | -8/Garrison | Phase Generator disabled 16532 | -8/Garrison | Triggered checkpoint 16728 | -8/Garrison | Core integrity fell below 50% 16898 | -8/Garrison | Entered Factory 16898 | -7/Factory | Evolved 2 slots: Utility x1, Weapon x1 16899 | -7/Factory | Identified exit to Lower Caves 16900 | -7/Factory | Identified exit to Factory 16904 | -7/Factory | Loaded intel: 4 scanalyzer locations 16924 | -7/Factory | Central database locked down 17147 | -7/Factory | Build established: Scavenger-Tank 17298 | -7/Factory | First assault squad dispatched 17449 | -7/Factory | Lost 4 parts (1n2u1w) 17692 | -7/Factory | Garrison activated, responded to threat 18290 | -7/Factory | Garrison activated, responded to threat 18360 | -7/Factory | Cargo convoy interrupted 18388 | -7/Factory | Entered Lower Caves 18401 | -7/Lower Caves | Discovered new exit (range 111) 18409 | -7/Lower Caves | Met a Warlord Commander 18410 | -7/Lower Caves | Learned location of Warlord (-5) 18411 | -7/Lower Caves | Warlord Commander delivered Encrypted Comm Array 18413 | -7/Lower Caves | Found Encrypted Comm Array 18418 | -7/Lower Caves | Lost 3 parts (1n1u1w) 18742 | -7/Lower Caves | Build established: Tank 19541 | -7/Lower Caves | Found DCF Scrap (15 items) 19604 | -7/Lower Caves | Entered another Lower Caves area 19647 | -7/Lower Caves | Discovered exit to Factory (range 9) 19727 | -7/Lower Caves | Attracted the attention of an 0b10 outpost 19775 | -7/Lower Caves | Core integrity fell below 50% 19794 | -7/Lower Caves | Destroyed 7 combat bots 19820 | -7/Lower Caves | Lost 3 parts (1n1u1w) 20196 | -7/Lower Caves | Spotted B-75 Beast 20324 | -7/Lower Caves | Learned location of 1 exit from Factory 20414 | -7/Lower Caves | Attracted the attention of an 0b10 checkpoint 20748 | -7/Lower Caves | Encountered a Master Thief 20748 | -7/Lower Caves | Encountered a Master Thief 20748 | -7/Lower Caves | Encountered a Master Thief 20748 | -7/Lower Caves | Encountered a Master Thief 20750 | -7/Lower Caves | Encountered a Master Thief 20750 | -7/Lower Caves | Plasma Cannon stolen by Master Thief 20753 | -7/Lower Caves | Imp. Recalibrator stolen by Master Thief 20755 | -7/Lower Caves | Encrypted Comm Array stolen by Master Thief 20756 | -7/Lower Caves | Flak Gun stolen by Master Thief 20756 | -7/Lower Caves | Hvy. Riot Gun stolen by Master Thief 20804 | -7/Lower Caves | Discovered new exit (range 5) 20811 | -7/Lower Caves | Entered Zion 20830 | -7/Zion | Given A8's code to call for help 20923 | -7/Zion | Discovered new exit (range 12) 21022 | -7/Zion | System corruption cleaned by Quarantine Array 21070 | -7/Zion | Found Prototype Device 21070 | -7/Zion | Identified Phasing AFG 21091 | -7/Zion | Build established: Scavenger-Mutant 21159 | -7/Zion | Learned Factory garrison access intel 21246 | -7/Zion | Found Prototype Energy Gun 21246 | -7/Zion | Identified Storm Laser 21437 | -7/Zion | Found Prototype Launcher 21437 | -7/Zion | Identified Gui. Missile Launcher 21558 | -7/Zion | Build established: Scavenger-Tank 21906 | -7/Zion | Given the Hacking Drone Bay 21907 | -7/Zion | Found Prototype Device 21907 | -7/Zion | Identified Hacking Drone Bay 21944 | -7/Zion | Acquired unknown access codes intercepted by a Zionite 23362 | -7/Zion | Entered Proximity Caves 23631 | -6/Proximity Caves | Spotted B-75 Beast 23656 | -6/Proximity Caves | Build established: Scavenger-Skirmisher 23702 | -6/Proximity Caves | Attracted the attention of an 0b10 checkpoint 23947 | -6/Proximity Caves | Learned 4 Factory zone layouts 24077 | -6/Proximity Caves | Discovered exit to Factory (range 7) 24233 | -6/Proximity Caves | Entered Factory 24233 | -6/Factory | Evolved 2 slots: Power x1, Propulsion x1 24234 | -6/Factory | Identified exit to Lower Caves 24235 | -6/Factory | Identified exit to Factory 24236 | -6/Factory | Loaded intel: 4 garrison access locations 24367 | -6/Factory | Build established: Scavenger-Tank 24808 | -6/Factory | Discovered exit to Factory (range 6) 25332 | -6/Factory | Build established: Scavenger-Mutant 25338 | -6/Factory | Discovered exit to Factory (range 5) 25442 | -6/Factory | Lost 3 parts (1p1u1w) 25626 | -6/Factory | Fabricated Adv. Drone Bay? 25688 | -6/Factory | Lost 3 parts (2n1u) 26108 | -6/Factory | Entered Lower Caves 26327 | -6/Lower Caves | Build established: Skirmisher 26461 | -6/Lower Caves | Encountered a Warlord checkpoint 26733 | -6/Lower Caves | Build established: Assassin 26884 | -6/Lower Caves | Discovered new exit (range 9) 27016 | -6/Lower Caves | Identified exit to Lower Caves 27018 | -6/Lower Caves | Entered another Lower Caves area 27019 | -6/Lower Caves | Phasing AFG stolen by Master Thief 27020 | -6/Lower Caves | Encountered a Master Thief 27020 | -6/Lower Caves | Encountered a Master Thief 27020 | -6/Lower Caves | Encountered a Master Thief 27020 | -6/Lower Caves | Hacking Drone Bay stolen by Master Thief 27021 | -6/Lower Caves | Ion Burst Cannon stolen by Master Thief 27064 | -6/Lower Caves | Learned Factory stockpile data 27759 | -6/Lower Caves | Attracted the attention of an 0b10 checkpoint 27843 | -6/Lower Caves | Discovered new exit (range 9) 27880 | -6/Lower Caves | Identified exit to Data Miner 27976 | -6/Lower Caves | Entered Data Miner 27979 | -6/Data Miner | Discovered new exit (range 6) 28009 | -6/Data Miner | Met Data Miner 28039 | -6/Data Miner | Learned location of Section 7 (-2) 28039 | -6/Data Miner | Acquired the access code to Warlord's prototype stash 28073 | -6/Data Miner | Received God Mode back door access code from Data Miner 28111 | -6/Data Miner | Identified exit to Proximity Caves 28266 | -6/Data Miner | Build established: Mutant 28274 | -6/Data Miner | Interfaced with the Data Conduit 28361 | -6/Data Miner | Core integrity fell below 50% 28366 | -6/Data Miner | Released all parts (3) 28395 | -6/Data Miner | Lost 11 parts (3p5n2u1w) 28396 | -6/Data Miner | Entered Proximity Caves 28591 | -5/Proximity Caves | Learned Factory trap positions 28662 | -5/Proximity Caves | Attracted the attention of an 0b10 checkpoint 28720 | -5/Proximity Caves | Spotted B-75 Beast 28815 | -5/Proximity Caves | Core integrity fell below 20% 28856 | -5/Proximity Caves | Discovered exit to Factory (range 11) 28861 | -5/Proximity Caves | Entered Factory 28861 | -5/Factory | Evolved 2 slots: Utility x2 28862 | -5/Factory | Loaded intel: 78 trap records 28864 | -5/Factory | Loaded intel: 288 machine locations 29082 | -5/Factory | Core integrity fell below 50% 29114 | -5/Factory | Lost 10 parts (2p5n2u1w) 29330 | -5/Factory | Intercept squad dispatched 29360 | -5/Factory | Spotted Tracker 29373 | -5/Factory | Core integrity fell below 20% 29381 | -5/Factory | Destroyed by Tracker with Linked Autogun Last Messages --------------- route. [Achievement: Coming In Hot] 29338_ Connecting with Terminal... >>Layout(Zone) Retrieving Zone 6N layout... Downloaded map data. 29349_ 7|MAAB20EW#HHEK02V UIT,TKQCL 29373_ Destabilizing: System interference. 29373_ Imp. Signal Interpreter temporarily disabled. 29374_ Slammed into Tracker. 29376_ Destabilizing: Core damaged (-30). 29377_ Slammed into Tracker. Map ----- +----------------------------------------------------+ | # # #???????""??????"""?????"Y | | # ?# #????????G"?????????????"" | | # ?# #???????""???????????????? | | # ??# #????????????????????????? | | ?##########?# #????????????????????????? | | ?# ^ ### ###??????????????????????? | | ?#""" # #?? #?????????"""??????? | | ?#""" !# ### ##????????"""??????? | | ?#""" # #????# """??????? | | ?# ! + T #????# ??????? | | ?#""" # #????# ??????? | | ?#""" # ##+#+###### ??????? | | ?#""" # # ## ??????? | | ?# ## ## """## ??????? | | ?########### ## """## #####??????? | | ??# # ## """## #??????????? | | ??# """"" + ## ## #??????????? | | ??# """"" # ############+#####??????? | | ??# """ # ###### ??????? | | ??# # *# # " " " " " ??????? | | ??# """"" #####=# # " " " " " ??????? | | ??# """"" #???#=# # " " " " " ??????? | | ??# """ #???# #"" # " " " " " ??????? | | ??# !#???# #"T # " " " " " ??????? | | ??#####+######## #"" # " " " " " ??????? | | ??????#^^ @s # " " " " " ??????? | | ??????#### #####+###### " " " " " ??????? | | ?????????# #?#* # " " " " " ??????? | | ???????### ### ""# ??????? | | ???????# # !!! ""# ??????? | | ???????# # !!! ""###########+#??????? | | ???????# + !!! T#?????????# ??????? | | ???????# # ""#?????????# ??????? | | ???????# # ""#?????????# ??????? | | ??????####+###= ""#??????####+#??????? | | ??????# # #??????# ??????? | | ??????# " ##########??????# """ ??????? | | ??????# T ###### #????????# "Y ??????? | | ??????# " ? #????????# """ ??????? | | ?????????????????????????????????????????? | | ?????????????????????????????????????????? | | ?????????????????????????????????""""""""" | | ?????????????????????????????????????????? | | ?????????????????????????????????????????? | | | | | | | | | | | | | +----------------------------------------------------+ Best States ------------- Heat Dissipation 83 Energy Generation 29 Energy Capacity 350 Matter Stores 300 Matter Capacity 300 Sight Range 16 Robot Scan Range 15 Terrain Scan Density 10 Jamming Range 12 Armor Coverage 375 Resistance: KI 20 Resistance: TH 10 Evasion (%) 70 Recoil Reduction 5 Item Schematics ----------------- Rocket Launcher | -9/Materials | Scanalyzed Datajack | -8/Materials | Scanalyzed Mni. Grenade Launcher | -8/Materials | Scanalyzed Great Maul | -8/Materials | Scanalyzed Arm. Wheel | -8/Materials | Scanalyzed Imp. Cooling System | -8/Materials | Scanalyzed Reactive Plating | -8/Materials | Scanalyzed Structural Scanner | -8/Materials | Scanalyzed Battle Cannon | -7/Zion | Free Slug Cannon | -7/Zion | Free Enh. Flamer | -7/Zion | Free Combat Drone Bay | -6/Data Miner | Free Lgt. Regenerative Plating | -6/Data Miner | Free Enh. Flexi-carbon Leg | -6/Data Miner | Free Imp. Matter Compressor | -6/Data Miner | Free Kinetic Spear | -6/Data Miner | Free Impulse Thruster | -6/Data Miner | Free Adv. Trap Scanner | -6/Data Miner | Free Hvy. Disruptor Cannon | -6/Data Miner | Free Adv. Medium Treads | -6/Data Miner | Free Mic. Antimatter Reactor | -6/Data Miner | Free Adv. Component Analysis Suite | -6/Data Miner | Free Robot Schematics ------------------ S-27 Virus | -6/Data Miner | Free H-66 Slayer | -6/Data Miner | Free L-41 Fighter | -6/Data Miner | Free I-47 Archangel | -6/Data Miner | Free R-10 Processor | -6/Data Miner | Free Fabricated ------------ Adv. Drone Bay | x1 | -6/Factory | Preloaded Repaired ---------- Arm. Treads | 87% | -9/Materials Studied --------- Lgt. Treads | -9/Materials | Hacked Grenade Launcher | -9/Materials | Hacked Arm. Wheel | -8/Materials | Hacked Mni. Grenade Launcher | -8/Materials | Hacked Gauss Rifle | -7/Factory | Hacked Great Maul | -7/Factory | Hacked Adv. Treads | -7/Factory | Hacked Missile Launcher | -7/Factory | Hacked Alien Tech Used ----------------- None Achievements -------------- About That Survey... Coming In Hot Unlimited Data Challenges ------------ None Game ------ Seed ChromionTripodWarhead Manual? 0 Play Time 04:41:45 Cumulative 344.9 hours Start 2026.04.11 @ 23:11:16 End 2026.04.13 @ 21:26:19 Sessions 9 Manual Loads 0 Difficulty Rogue Special Mode None Game No. 98 Rogue 98 Adventurer 0 Explorer 0 Win Type - Total 2 Types 2/0/0/0/0/0/0/0/0/0 Lore% 62 Gallery% 59 Achievement% 48 Wizard Run 0 Options --------- Layout 0 ASCII 1 Keyboard 1 Movement Arrows Keybinds 0 Fullscreen 1 Font 24/Smallcaps Map View 76x50 Zoom Use 0% Tactical HUD 1 Map Filters NONE Filters NONE Steam 1 RUN: b7973dfb-0e4b-4560-976b-385a93506b84